bitfinex/quotes_ETHUSD_20250520
["timestamp","ask_amount","ask_price","bid_price","bid_amount"]
[1747744682271,0.33437514,2484.9,2483.9,28.276911]
[1747744682444,4.02549106,2484.2,2484.1,0.55]
[1747744682968,4.02549106,2484.2,2484.1,15.539]
[1747744683171,4.02549106,2484.2,2484.1,17.17032]
[1747744684160,4.02549106,2484.2,2484.1,23.583512]
[1747744684363,4.02529579,2484.3,2484.1,22.73732]
[1747744684578,0.33437514,2484.9,2484.1,22.73732]
[1747744684579,4.0248192,2484.6,2484.1,17.17032]
[1747744684780,4.02511672,2484.4,2484.3,0.55]
[1747744685096,4.02511672,2484.4,2484.3,5.325592]
[1747744685239,4.02511672,2484.4,2484.3,2.344142]
[1747744685839,4.02511672,2484.4,2484.3,10.105592]
[1747744686172,0.33437514,2484.9,2484.3,8.531592]
[1747744686483,4.02479272,2484.6,2484.5,0.55]
[1747744686642,4.02471889,2484.7,2484.5,13.6654982]
[1747744686837,4.02479272,2484.6,2484.5,11.4753142]
[1747744687042,4.0247116,2484.7,2484.5,18.3619092]
[1747744687264,4.02471806,2484.7,2484.5,11.4753142]
[1747744687477,4.02479272,2484.6,2484.5,1.9723142]
[1747744687679,4.02479272,2484.6,2484.5,8.953]
[1747744687879,4.02479272,2484.6,2484.5,9.7153]
[1747744688456,4.01847061,2484.6,2484.5,9.7153]
[1747744688961,4.01847061,2484.6,2484.5,0.7623]
[1747744689294,4.02495471,2484.5,2484.4,17.379]
[1747744689480,4.02495471,2484.5,2484.4,26.289]
[1747744690221,4.02495471,2484.5,2484.4,28.17780907]
[1747744690509,4.02472192,2484.7,2484.5,0.55]
[1747744690684,4.02479272,2484.6,2484.5,0.55]
[1747744691081,4.02495471,2484.5,2484.4,35.62780907]
[1747744691272,4.02495471,2484.5,2484.4,36.17780907]
[1747744692063,4.02495471,2484.5,2484.4,35.22157272]
[1747744692874,4.02495471,2484.5,2484.4,34.67157272]
[1747744693968,4.02495471,2484.5,2484.4,34.289]
[1747744694170,4.35877663,2484.9,2484.5,1.3208]
[1747744694370,4.35878605,2484.9,2484.7,0.55]
[1747744694711,4.358702,2484.9,2484.7,0.55]
[1747744694897,4.02446877,2484.8,2484.7,0.55]
[1747744695291,4.35876352,2484.9,2484.7,0.55]
[1747744695631,4.02446877,2484.8,2484.7,0.55]
[1747744695923,0.33437514,2484.9,2484.8,8.55]
[1747744696221,0.33437514,2484.9,2484.8,21.799763]
[1747744696373,0.33437514,2484.9,2484.8,25.82423177]
[1747744696919,4.1228478,2485.9,2484.8,25.82423177]
[1747744696920,0.1,2485.9,2485.2,8.55]
[1747744697086,4.02327092,2485.6,2485.3,26.285]
[1747744697417,4.02333534,2485.5,2485.4,2.6835]
[1747744697585,4.02333534,2485.5,2485.4,3.01937455]
[1747744698002,4.02333534,2485.5,2485.4,0.33587455]
[1747744698207,4.02333534,2485.5,2485.4,9.24387455]
[1747744699412,4.02333534,2485.5,2485.4,0.33587455]
[1747744699713,4.02333534,2485.5,2485.4,9.24387455]
[1747744700418,4.35753534,2485.5,2485.4,9.24387455]
[1747744700710,5.19561597,2485.5,2485.4,9.24387455]
[1747744700896,8.3777437,2485.5,2485.4,0.33587455]
[1747744701097,4.35818293,2485.1,2485.0,8.908]
[1747744702134,4.76832865,2485.1,2485.0,8.908]
[1747744702939,4.35818293,2485.1,2485.0,8.908]
[1747744703235,5.19638641,2485.1,2485.0,8.908]
[1747744703935,4.02463074,2484.7,2484.6,17.373]
[1747744704235,4.35883074,2484.7,2484.6,26.282]
[1747744708543,4.35883074,2484.7,2484.6,17.373]
[1747744708870,4.35883074,2484.7,2484.6,8.909]
[1747744709018,5.06688274,2484.7,2484.6,8.909]
[1747744709224,4.02592696,2483.9,2483.8,17.375]
[1747744709539,4.02592696,2483.9,2483.8,27.0723]
[1747744711265,4.02592696,2483.9,2483.8,26.285]
[1747744711420,4.02592696,2483.9,2483.8,17.375]
[1747744711620,4.02592696,2483.9,2483.8,26.285]
[1747744712150,4.02592696,2483.9,2483.8,28.9135]
[1747744712356,4.02580671,2484.0,2483.9,0.8218]
[1747744714137,4.02580671,2484.0,2483.8,26.285]
[1747744714138,4.02592696,2483.9,2483.8,26.285]
[1747744715677,4.02592696,2483.9,2483.8,26.286]
[1747744716337,4.02592696,2483.9,2483.8,28.99669]
[1747744718105,4.02585512,2484.0,2483.8,28.99669]
[1747744718395,4.02528483,2484.3,2483.8,28.99669]
[1747744718396,4.0244664,2484.9,2483.8,28.99669]
[1747744718568,8.0,2485.3,2483.9,5.33265033]
[1747744718569,4.0251862,2484.4,2483.9,5.33265033]
[1747744718771,4.02497896,2484.5,2484.1,4.02558282]
[1747744718971,4.02366314,2485.3,2484.3,4.57520153]
[1747744718972,4.02454744,2484.8,2484.3,4.57520153]
[1747744719166,4.02495471,2484.5,2484.4,8.714]
[1747744719567,4.02576489,2484.0,2483.9,8.7727]
[1747744719799,4.02576489,2484.0,2483.9,12.261939]
[1747744719996,4.02592696,2483.9,2483.8,17.375]
[1747744720208,4.02592696,2483.9,2483.8,26.089]
[1747744721316,4.02592696,2483.9,2483.8,17.375]
[1747744721518,4.76478936,2483.9,2483.8,8.714]
[1747744721819,4.02641327,2483.6,2483.5,20.14368784]
[1747744721994,4.02641327,2483.6,2483.5,19.51960752]
[1747744722471,4.02113684,2483.6,2483.5,19.51960752]
[1747744725097,4.35533684,2483.6,2483.5,19.51960752]
[1747744725407,4.02113684,2483.6,2483.5,19.51960752]
[1747744726711,4.82587859,2483.6,2483.5,19.51960752]
[1747744726910,4.82587859,2483.6,2483.5,28.23460752]
[1747744728420,4.02113684,2483.6,2483.5,28.23460752]
[1747744731621,0.3342,2484.3,2483.5,28.23460752]
[1747744731622,4.35900116,2484.6,2483.6,0.55]
[1747744731939,4.02601026,2483.9,2483.7,6.036]
[1747744732155,4.02627555,2483.7,2483.5,20.31150752]
[1747744732306,4.02619611,2483.8,2483.6,14.752]
[1747744732507,4.02617258,2483.8,2483.7,8.716]
[1747744733289,4.02641327,2483.6,2483.5,19.51960752]
[1747744733611,4.02641327,2483.6,2483.5,28.23560752]
[1747744733956,4.36061327,2483.6,2483.5,19.51960752]
[1747744734124,5.60192044,2483.6,2483.5,28.23560752]
[1747744734847,5.59814035,2483.6,2483.5,28.23560752]
[1747744735040,5.59814035,2483.6,2483.5,19.51960752]
[1747744735346,5.59814035,2483.6,2483.5,28.23560752]
[1747744735558,5.59814035,2483.6,2483.5,19.51960752]
[1747744736449,4.35683318,2483.6,2483.5,28.23560752]
[1747744736621,4.02263318,2483.6,2483.5,19.51960752]
[1747744736810,4.02263318,2483.6,2483.5,28.23660752]
[1747744737514,4.35683318,2483.6,2483.5,28.23660752]
[1747744738040,12.35683318,2483.6,2483.5,19.51960752]
[1747744739745,4.35176488,2483.6,2483.5,19.51960752]
[1747744740613,4.01756488,2483.6,2483.5,19.51960752]
[1747744740815,4.02607929,2483.9,2483.6,0.7852]
[1747744741015,4.02511672,2484.4,2483.6,0.7852]
[1747744741324,4.02527875,2484.3,2483.6,0.7852]
[1747744741532,4.02617307,2483.8,2483.7,2.03048075]
[1747744741713,4.02617307,2483.8,2483.7,8.717]
[1747744744059,4.02598311,2483.9,2483.7,8.717]
[1747744744254,4.02608905,2483.8,2483.7,8.717]
[1747744744458,4.02532704,2484.3,2483.7,8.717]
[1747744744757,4.02608905,2483.8,2483.7,11.61918075]
[1747744745928,4.02600127,2483.9,2483.7,11.61918075]
[1747744746133,4.02557595,2484.2,2483.9,0.7787]
[1747744746342,4.02562006,2484.1,2483.9,0.7787]
[1747744746519,4.02551013,2484.2,2483.9,0.7787]
[1747744746951,4.02431222,2484.9,2484.0,0.55]
[1747744747147,0.3342,2485.2,2484.2,0.55]
[1747744747359,4.02494939,2484.6,2484.3,26.099]
[1747744747658,4.02472087,2484.7,2484.5,0.55]
[1747744747871,4.02495471,2484.5,2484.4,9.4398]
[1747744748167,4.02479272,2484.6,2484.5,0.00640517]
[1747744748321,4.02459989,2484.8,2484.5,0.00640517]
[1747744748522,4.02370895,2485.3,2484.5,0.55640517]
[1747744748723,4.02422315,2485.0,2484.8,0.55]
[1747744748955,4.02422315,2485.0,2484.9,8.715]
[1747744749266,4.02404368,2485.1,2485.0,0.8011]
[1747744750354,4.02479272,2484.6,2484.5,14.04140517]
[1747744750553,4.02479272,2484.6,2484.5,26.15383569]
[1747744750723,4.02452009,2484.8,2484.5,26.92543569]
[1747744751060,4.02479272,2484.6,2484.5,21.44043569]
[1747744751247,4.02479272,2484.6,2484.5,27.47543569]
[1747744751766,4.02479272,2484.6,2484.5,0.77800517]
[1747744752094,4.02479272,2484.6,2484.5,9.48600517]
[1747744753461,4.02479272,2484.6,2484.5,0.00640517]
[1747744753666,4.02479272,2484.6,2484.5,8.71440517]
[1747744754830,4.02479272,2484.6,2484.5,0.00640517]
[1747744755055,4.02479272,2484.6,2484.5,8.71440517]
[1747744755762,4.02479272,2484.6,2484.5,9.50600517]
[1747744756985,4.02479272,2484.6,2484.5,8.71440517]
[1747744757332,4.02349722,2485.4,2484.5,9.58584569]
[1747744757539,4.02454497,2484.8,2484.6,0.8324]
[1747744758283,4.02463074,2484.7,2484.6,0.8324]
[1747744758583,4.02452369,2484.8,2484.6,0.8324]
[1747744758954,4.02382762,2485.2,2484.6,0.8324]
[1747744759289,4.02458202,2484.8,2484.6,0.8324]
[1747744759487,4.02458202,2484.8,2484.6,1.87422457]
[1747744759633,4.35769661,2485.5,2484.6,1.3824]
[1747744759839,4.02456056,2484.8,2484.7,8.708]
[1747744760135,4.02446877,2484.8,2484.7,8.708]
[1747744761360,4.02446877,2484.8,2484.7,9.258]
[1747744761554,4.02446877,2484.8,2484.7,8.708]
[1747744765072,4.01835479,2484.8,2484.7,8.708]
[1747744766060,4.02463074,2484.7,2484.6,0.8324]
[1747744766268,4.02463074,2484.7,2484.5,0.00640517]
[1747744766269,4.02479272,2484.6,2484.5,0.00640517]
[1747744766574,4.02479272,2484.6,2484.5,8.71240517]
[1747744768944,4.02317347,2485.6,2484.6,1.3086]
[1747744769141,4.02317347,2485.6,2484.6,8.7586]
[1747744769393,4.02407111,2485.1,2484.7,0.7750884]
[1747744769697,0.3342,2485.7,2484.9,0.55]
[1747744769985,4.02426332,2485.0,2484.9,0.55]
[1747744770144,4.02426332,2485.0,2484.9,17.925]
[1747744770341,4.8290916,2485.0,2484.9,17.375]
[1747744770575,4.8290916,2485.0,2484.9,26.081]
[1747744772011,4.02426332,2485.0,2484.9,26.081]
[1747744773199,4.02426332,2485.0,2484.9,26.8941]
[1747744774262,4.02426332,2485.0,2484.9,26.081]
[1747744780299,4.02426332,2485.0,2484.9,17.375]
[1747744780499,4.02426332,2485.0,2484.9,25.887]
[1747744780664,5.17049617,2485.0,2484.9,25.887]
[1747744782121,5.16203266,2485.0,2484.9,25.887]
[1747744785400,4.01579981,2485.0,2484.9,25.887]
[1747744786515,4.01579981,2485.0,2484.9,17.375]
[1747744786673,4.01579981,2485.0,2484.9,25.888]
[1747744787390,4.01579981,2485.0,2484.9,17.375]
[1747744787614,4.01579981,2485.0,2484.9,25.888]
[1747744789212,4.81978174,2485.0,2484.9,25.888]
[1747744790677,4.8149556,2485.0,2484.9,25.888]
[1747744791098,4.8149556,2485.0,2484.9,17.375]
[1747744791315,4.8149556,2485.0,2484.9,25.887]
[1747744792694,4.8149556,2485.0,2484.9,17.375]
[1747744792896,4.8149556,2485.0,2484.9,25.887]
[1747744794290,4.01097367,2485.0,2484.9,25.887]
[1747744800829,4.34517367,2485.0,2484.9,25.887]
[1747744801704,4.02495471,2484.5,2484.4,0.00640517]
[1747744801906,4.35915471,2484.5,2484.4,0.00640517]
[1747744802217,5.19755328,2484.5,2484.4,0.00640517]
[1747744802407,5.59019037,2484.5,2484.4,0.00640517]
[1747744803321,14.25752508,2484.5,2484.4,0.00640517]
[1747744803505,4.02641327,2483.6,2483.5,19.51960752]
[1747744804594,4.35421327,2483.6,2483.5,19.51960752]
[1747744804791,5.19226262,2483.6,2483.5,19.51960752]
[1747744805231,16.27210836,2483.6,2483.5,19.51960752]
[1747744805428,13.19226262,2483.6,2483.5,19.51960752]
[1747744805629,4.02641327,2483.6,2483.5,19.51960752]
[1747744806637,4.02641327,2483.6,2483.5,28.03460752]
[1747744807021,4.35421327,2483.6,2483.5,28.03460752]
[1747744807813,4.34685949,2483.6,2483.5,28.03460752]
[1747744808008,5.18417347,2483.6,2483.5,28.03460752]
[1747744808213,16.26401921,2483.6,2483.5,19.51960752]
[1747744809099,26.37401921,2483.6,2483.5,19.51960752]
[1747744809297,26.59621921,2483.6,2483.5,3.3409417]
[1747744809536,33.42258511,2483.6,2483.5,3.3409417]
[1747744809699,27.1649064,2483.6,2483.5,3.3409417]
[1747744809904,26.51884892,2483.6,2483.5,3.3409417]
[1747744810409,34.18665211,2483.6,2483.5,3.3409417]
[1747744811018,34.18665211,2483.6,2483.5,0.10789283]
[1747744812240,4.02706185,2483.2,2483.1,0.1]
[1747744812536,4.02706185,2483.2,2482.1,0.1]
[1747744812537,4.02868423,2482.2,2482.1,0.1]
[1747744813840,3.30478005,2482.2,2482.0,7.523]
[1747744814024,4.02884654,2482.1,2482.0,7.523]
[1747744814205,4.02900886,2482.0,2481.9,0.8267]
[1747744814539,4.02900886,2482.0,2481.9,9.2497]
[1747744814707,4.02900886,2482.0,2481.9,11.91297]
[1747744814908,4.02900886,2482.0,2481.9,9.2497]
[1747744815135,4.02933354,2481.8,2481.6,0.7652]
[1747744815443,4.02933354,2481.8,2481.7,25.807]
[1747744817154,4.02933354,2481.8,2481.7,26.5722]
[1747744824737,4.02310349,2481.8,2481.7,26.5722]
[1747744825227,4.02310349,2481.8,2481.7,26.5752]
[1747744825650,4.02310349,2481.8,2481.7,17.383]
[1747744825820,4.02310349,2481.8,2481.7,25.81]
[1747744826145,4.02310349,2481.8,2481.7,29.1735]
[1747744828414,4.02310349,2481.8,2481.7,26.5925]
[1747744829448,4.02310349,2481.8,2481.7,25.81]
[1747744830043,4.02310349,2481.8,2481.7,26.6266]
[1747744832744,4.02722403,2483.1,2481.8,0.8046]
[1747744832946,4.02608905,2483.8,2482.4,4.02826418]
[1747744833257,4.02751898,2483.0,2482.8,0.55]
[1747744833457,4.02751898,2483.0,2482.9,26.5983]
[1747744836351,4.02668796,2483.5,2483.0,0.55]
[1747744836665,4.02699961,2483.3,2483.2,0.7848]
[1747744836842,4.02689968,2483.3,2483.2,0.7848]
[1747744837033,4.0266267,2483.5,2483.2,0.7848]
[1747744837231,4.02689968,2483.3,2483.2,1.3348]
[1747744837429,0.33598607,2483.7,2483.3,0.55]
[1747744837742,0.33598607,2483.7,2483.5,0.7935]
[1747744837937,0.33598607,2483.7,2483.6,0.55]
[1747744838141,4.02613293,2483.8,2483.6,0.55]
[1747744838862,4.12596856,2483.9,2483.6,0.55]
[1747744839027,4.12596856,2483.9,2483.8,0.55]
[1747744839226,4.12596856,2483.9,2483.8,17.939]
[1747744839566,0.1,2483.9,2483.8,20.60258]
[1747744839863,4.12437187,2484.9,2484.2,0.7908]
[1747744840063,4.0250627,2484.5,2484.4,0.55]
[1747744840361,4.12437187,2484.9,2484.4,0.55]
[1747744840362,0.1,2484.9,2484.4,1.3671]
[1747744840564,4.02495471,2484.5,2484.4,1.3671]
[1747744841145,4.02495471,2484.5,2484.4,0.8171]
[1747744842969,0.1,2484.9,2484.4,1.74121]
[1747744843166,4.12445678,2484.9,2484.5,0.55]
[1747744843664,4.12430935,2484.9,2484.5,0.55]
[1747744843863,0.1,2484.9,2484.5,0.55]
[1747744844045,4.0244751,2484.8,2484.7,1.3203]
[1747744844243,4.0244751,2484.8,2484.7,27.1063]
[1747744844440,4.12439607,2484.9,2484.7,27.1063]
[1747744844648,4.12432061,2484.9,2484.7,27.1063]
[1747744845153,0.1,2484.9,2484.8,0.8004]
[1747744845354,0.1,2484.9,2484.8,6.9737811]
[1747744845559,4.12430681,2484.9,2484.8,6.9737811]
[1747744845851,4.12430681,2484.9,2484.8,4.9587811]
[1747744847855,4.12430681,2484.9,2484.8,1.3504]
[1747744848573,4.12430681,2484.9,2484.8,0.8004]
[1747744848764,4.12430681,2484.9,2484.8,9.1984]
[1747744848965,4.12430681,2484.9,2484.8,8.398]
[1747744849386,4.02446877,2484.8,2484.7,17.385]
[1747744849546,5.34176119,2484.8,2484.7,17.385]
[1747744849761,5.34176119,2484.8,2484.7,25.783]
[1747744850847,13.34176119,2484.8,2484.7,17.385]
[1747744851051,13.34176119,2484.8,2484.7,25.783]
[1747744851663,4.02576489,2484.0,2483.9,0.7762]
[1747744851953,4.02576489,2484.0,2483.9,8.398]
[1747744852847,4.02576489,2484.0,2483.6,17.378]
[1747744853044,4.02576489,2484.0,2483.5,0.8119]
[1747744853045,4.02706185,2483.2,2483.1,0.8064]
[1747744853286,4.02706185,2483.2,2483.1,26.5824]
[1747744854484,4.02706185,2483.2,2483.1,25.777]
[1747744854653,4.02706185,2483.2,2483.1,17.378]
[1747744854856,4.02706185,2483.2,2483.1,25.777]
[1747744856061,4.02706185,2483.2,2483.1,17.378]
[1747744856262,4.12706185,2483.2,2483.1,25.777]
[1747744856465,4.94246059,2483.2,2483.1,25.777]
[1747744857213,4.02706185,2483.2,2483.1,25.777]
[1747744857587,4.02608905,2483.8,2483.1,25.777]
[1747744857892,4.02706185,2483.2,2483.1,25.777]
[1747744858090,4.02706185,2483.2,2483.1,17.378]
[1747744858290,4.02706185,2483.2,2483.1,25.778]
[1747744862181,4.83246095,2483.2,2483.1,25.779]
[1747744862384,4.93246095,2483.2,2483.1,25.779]
[1747744863007,4.02706185,2483.2,2483.1,25.779]
[1747744869820,4.02706185,2483.2,2483.1,25.78]
[1747744872833,4.12639964,2483.7,2483.1,25.78]
[1747744872978,4.12595266,2483.9,2483.1,25.78]
[1747744873178,4.02691147,2483.3,2483.1,25.78]
[1747744873494,4.02691147,2483.3,2483.1,28.43998]
[1747744873698,4.02680706,2483.4,2483.1,28.43998]
[1747744874614,4.02706185,2483.2,2483.1,28.98998]
[1747744875002,4.02706185,2483.2,2483.1,25.78]
[1747744876282,4.02706185,2483.2,2483.1,17.378]
[1747744876477,4.02706185,2483.2,2483.1,25.775]
[1747744876681,12.02706185,2483.2,2483.1,25.775]
[1747744876903,22.12706185,2483.2,2483.1,25.775]
[1747744877078,23.70625861,2483.2,2483.1,25.775]
[1747744883715,23.70625861,2483.2,2483.1,25.7712199]
[1747744886011,15.70625861,2483.2,2483.1,25.7712199]
[1747744886214,23.70625861,2483.2,2483.1,25.7712199]
[1747744886613,4.02868423,2482.2,2482.1,0.1]
[1747744887248,12.02868423,2482.2,2482.1,0.1]
[1747744887408,12.12868423,2482.2,2482.1,0.1]
[1747744887945,12.53002215,2482.2,2482.1,0.1]
[1747744888411,0.1,2480.8,2479.4,1.59392184]
[1747744888609,4.03307118,2479.5,2479.4,1.59392184]
[1747744888911,4.82910261,2479.5,2479.4,1.59392184]
[1747744889412,3.69401293,2479.2,2479.1,8.794]
[1747744889640,4.03355921,2479.2,2479.1,8.794]
[1747744889941,8.066789,2479.4,2479.1,26.194]
[1747744890148,4.03355921,2479.2,2479.1,26.194]
[1747744890451,4.03269055,2479.8,2479.1,26.198]
[1747744890660,0.39296581,2480.8,2479.4,0.55]
[1747744890818,4.45503608,2482.0,2479.6,0.55]
[1747744891012,0.33598607,2481.4,2479.6,0.55]
[1747744891256,4.03014548,2481.3,2480.0,0.55]
[1747744891427,0.33598607,2481.2,2480.1,26.098]
[1747744891617,0.33598607,2481.2,2480.3,0.55]
[1747744891814,4.03124833,2480.7,2480.3,0.55]
[1747744892038,0.33598607,2481.2,2480.3,0.55]
[1747744892262,0.33598607,2481.2,2480.2,0.8134]
[1747744892263,4.03144527,2480.5,2480.2,0.8134]
[1747744892447,4.0316078,2480.4,2480.3,8.698]
[1747744893256,4.03141473,2480.6,2480.3,9.58503045]
[1747744893450,4.0316078,2480.4,2480.3,9.58503045]
[1747744894949,8.0,2481.2,2480.3,9.58503045]
[1747744895123,4.03125866,2480.7,2480.3,9.58503045]
[1747744895318,3.19783677,2481.5,2480.1,17.4]
[1747744895518,4.0319329,2480.2,2480.1,17.4]
[1747744895719,4.03034259,2481.2,2480.1,26.1]
[1747744895930,4.03106082,2480.8,2480.2,0.55]
[1747744896136,4.03121178,2480.7,2480.2,0.55]
[1747744896335,4.03121178,2480.7,2480.3,2.665]
[1747744896533,0.39695061,2481.6,2480.4,0.55]
[1747744896757,0.1,2481.9,2480.5,0.55]
[1747744896924,4.03040972,2481.2,2480.6,8.7]
[1747744897121,4.03066787,2481.0,2480.7,0.925]
[1747744897425,4.03053024,2481.1,2480.7,0.925]
[1747744897621,4.03066366,2481.0,2480.7,0.925]
[1747744898558,4.03054938,2481.1,2480.7,0.925]
[1747744898729,4.02949591,2481.7,2480.7,0.925]
[1747744898925,4.03057357,2481.1,2480.8,0.9625]
[1747744899263,0.1,2481.9,2480.9,1.3567]
[1747744899463,4.03024787,2481.3,2481.0,17.402]
[1747744899761,4.0299575,2481.5,2481.1,8.699]
[1747744899964,4.02959039,2481.7,2481.2,0.55]
[1747744900262,4.02952225,2481.7,2481.3,1.32794538]
[1747744900458,0.1,2481.9,2481.4,1.3284]
[1747744900664,0.1,2481.9,2481.6,4.02965629]
[1747744900835,0.1,2481.9,2481.8,5.35773354]
[1747744901035,14.02718171,2483.2,2482.0,4.02900886]
[1747744901271,0.33598607,2482.8,2482.3,0.55]
[1747744901431,0.33598607,2482.8,2482.2,8.7629]
[1747744901432,0.33598607,2482.8,2482.2,0.7629]
[1747744901764,0.33598607,2482.8,2482.4,8.698]
[1747744901966,4.02787288,2482.7,2482.4,8.698]
[1747744902137,0.33598607,2482.6,2482.2,8.7629]
[1747744902463,4.02846847,2482.4,2482.3,11.48978009]
[1747744902661,4.02826953,2482.5,2482.3,2.79178009]
[1747744902975,4.02826953,2482.5,2482.3,11.48978009]
[1747744902976,4.3642556,2482.5,2482.3,11.48978009]
[1747744903140,0.33598607,2482.5,2482.3,11.48978009]
[1747744903332,0.33598607,2482.5,2482.4,0.55]
[1747744903531,0.33598607,2482.5,2482.4,2.63026801]
[1747744903955,0.33598607,2482.5,2482.4,31.12957901]
[1747744904269,0.33598607,2482.5,2482.4,7.03166801]
[1747744904443,0.1,2482.9,2482.6,0.55]
[1747744904778,4.12754843,2482.9,2482.8,0.55]
[1747744904963,4.12754843,2482.9,2482.8,9.246]
[1747744905868,4.12754843,2482.9,2482.8,8.696]
[1747744906399,4.02803512,2482.6,2482.5,0.8262]
[1747744906560,4.02803512,2482.6,2482.5,9.5222]
[1747744907246,4.02803512,2482.6,2482.5,0.8262]
[1747744907443,4.02852193,2482.3,2482.2,0.7882]
[1747744907673,4.02852193,2482.3,2482.2,9.4832]
[1747744909481,4.02852193,2482.3,2481.7,8.55]
[1747744909482,4.02917119,2481.9,2481.8,0.7606]
[1747744909814,4.02917119,2481.9,2481.8,17.393]
[1747744909956,4.02917119,2481.9,2481.8,26.088]
[1747744910273,4.03047035,2481.1,2481.0,0.7606]
[1747744910442,4.03047035,2481.1,2481.0,26.8486]
[1747744911073,4.03047035,2481.1,2481.0,26.088]
[1747744911775,4.03047035,2481.1,2481.0,26.089]
[1747744912075,4.03047035,2481.1,2481.0,28.6979]
[1747744912491,4.03047035,2481.1,2481.0,26.089]
[1747744913257,4.03047035,2481.1,2481.0,17.393]
[1747744913478,4.03047035,2481.1,2481.0,26.089]
[1747744917183,4.03047035,2481.1,2481.0,26.42547021]
[1747744921391,4.03047035,2481.1,2481.0,26.44347021]
[1747744924805,4.03047035,2481.1,2481.0,26.44447021]
[1747744927520,4.46513354,2481.8,2481.0,26.44447021]
[1747744927710,4.03047035,2481.1,2481.0,26.108]
[1747744928219,4.03039034,2481.2,2481.1,0.7833]
[1747744928725,4.03013194,2481.4,2481.2,8.55]
[1747744929020,1.20851064,2482.3,2481.4,0.55]
[1747744929187,4.02937069,2481.8,2481.6,0.55]
[1747744929523,4.02937069,2481.8,2481.7,0.7795]
[1747744930324,4.02937069,2481.8,2481.7,0.33637531]
[1747744931026,4.02937069,2481.8,2481.7,9.05137531]
[1747744931322,4.46517069,2481.8,2481.7,9.05137531]
[1747744931520,5.31460603,2481.8,2481.7,9.05137531]
[1747744935828,15.42460603,2481.8,2481.7,0.33637531]
[1747744935992,4.46627035,2481.1,2481.0,26.107]
[1747744936193,4.03144527,2480.5,2480.4,17.398]
[1747744936527,4.03144527,2480.5,2480.4,26.4485516]
[1747744937829,12.03144527,2480.5,2480.4,26.4485516]
[1747744938837,14.00214604,2480.5,2480.4,17.7345516]
[1747744939031,14.00214604,2480.5,2480.4,26.4495516]
[1747744941216,4.0319329,2480.2,2479.1,0.1]
[1747744941416,12.4677329,2480.2,2480.0,8.717]
[1747744941620,13.31716824,2480.2,2479.5,17.403]
[1747744941955,13.31716824,2480.2,2479.9,8.717]
[1747744942137,13.31716824,2480.2,2479.5,17.403]
[1747744942310,13.31716824,2480.2,2480.1,8.817]
[1747744943420,13.31716824,2480.2,2480.1,0.1]
[1747744943636,13.86716824,2480.2,2480.1,0.1]
[1747744943820,4.03290853,2479.6,2479.5,17.403]
[1747744944148,4.03355921,2479.2,2479.1,0.1]
[1747744944446,4.03355921,2479.2,2479.1,8.818]
[1747744944447,12.03355921,2479.2,2479.1,8.818]
[1747744945021,12.44373914,2479.2,2479.1,0.1]
[1747744945247,12.03355921,2479.2,2479.1,8.818]
[1747744945745,12.03355921,2479.2,2479.1,0.1]
[1747744945945,12.03355921,2479.2,2479.1,8.818]
[1747744946174,12.03355921,2479.2,2479.1,0.1]
[1747744946321,14.30428415,2479.2,2479.1,0.1]
[1747744951713,14.30428415,2479.2,2479.1,8.832]
[1747744951949,4.36935921,2479.2,2479.1,26.244]
[1747744952111,4.03355921,2479.2,2479.1,26.244]
[1747744952950,4.03355921,2479.2,2479.1,17.512]
[1747744953168,4.03355921,2479.2,2479.1,26.245]
[1747744953512,4.03355921,2479.2,2479.1,17.512]
[1747744953753,4.03355921,2479.2,2479.1,26.245]
[1747744954461,4.84025799,2479.2,2479.1,26.245]
[1747744954769,3.62390085,2479.2,2479.1,26.245]
[1747744955749,3.62390085,2479.2,2479.1,17.512]
[1747744955952,3.62390085,2479.2,2479.1,27.0586]
[1747744957355,4.03350885,2479.3,2479.1,27.0586]
[1747744957525,4.03348516,2479.3,2479.1,27.6086]
[1747744957731,4.03350892,2479.3,2479.1,27.6086]
[1747744957938,4.03355921,2479.2,2479.1,27.6086]
[1747744958121,4.03355921,2479.2,2479.1,27.0586]
[1747744958660,4.03349177,2479.3,2479.1,29.76446]
[1747744958826,4.03349177,2479.3,2479.1,30.31446]
[1747744959015,4.03349709,2479.3,2479.1,30.31446]
[1747744959530,4.03355921,2479.2,2479.1,30.31446]
[1747744960327,4.03355921,2479.2,2479.1,29.76446]
[1747744965456,4.03355921,2479.2,2479.1,33.1046]
[1747744965861,4.03355921,2479.2,2479.1,27.0576]
[1747744967137,4.03319228,2479.5,2479.2,0.55]
[1747744967339,4.77765201,2480.5,2479.3,0.7566]
[1747744967640,4.03303339,2479.6,2479.3,3.51166]
[1747744967827,4.36725701,2480.5,2479.6,0.55]
[1747744968023,4.0323335,2480.0,2479.8,0.55]
[1747744968230,4.03170415,2480.4,2479.9,4.83370615]
[1747744968458,4.03090127,2480.9,2480.0,24.009]
[1747744968660,4.03205855,2480.2,2480.0,24.009]
[1747744969171,4.03209548,2480.1,2480.0,17.413]
[1747744969379,4.03209548,2480.1,2480.0,32.741]
[1747744969581,4.03209548,2480.1,2480.0,26.145]
[1747744970568,4.03209548,2480.1,2480.0,26.144]
[1747744970789,0.3358,2481.2,2480.0,26.144]
[1747744970935,4.03189742,2480.3,2480.0,28.83853]
[1747744971361,4.03101997,2480.8,2480.3,0.55]
[1747744971666,4.02982067,2481.5,2480.6,0.7761]
[1747744971971,10.11,2482.3,2480.8,1.3261]
[1747744971972,4.03056847,2481.1,2480.8,1.3261]
[1747744972146,4.03056847,2481.1,2480.9,24.46171]
[1747744972543,4.03055214,2481.1,2480.9,23.456]
[1747744972765,4.03036823,2481.2,2480.9,23.456]
[1747744972937,4.03022576,2481.3,2481.0,0.55]
[1747744973136,4.02947921,2481.8,2481.1,0.8065]
[1747744973341,0.1,2481.9,2481.2,8.731]
[1747744973342,4.02994792,2481.5,2481.2,8.731]
[1747744973675,4.02994792,2481.5,2481.2,10.14683542]
[1747744973829,4.02998307,2481.4,2481.3,0.55]
[1747744974027,4.03014548,2481.3,2481.2,8.731]